[Event "Israeli Team-ch 2023"]
[Site "Petah Tikva"]
[Date "2023.01.13"]
[Round "2.10"]
[White "Caspi, Israel"]
[Black "Sokolovsky, Yahli"]
[Result "1-0"]
[ECO "C47"]
[WhiteElo "2472"]
[BlackElo "2431"]
[Annotator "TA"]
[PlyCount "119"]
[EventDate "2023.01.13"]
[EventCountry "ISR"]
[SourceTitle "playchess.com"]
[Source "ChessBase"]
[SourceQuality "1"]
[TimeControl "40/5400+30:1800+30"]

{[%evp 17,119,0,3,0,7,0,0,0,18,8,27,14,14,0,8,0,12,23,17,26,15,0,0,0,43,40,65,26,37,29,38,37,67,69,127,16,25,0,14,9,2,0,0,0,0,0,0,0,0,0,0,0,0,-29,139,127,118,134,137,90,84,99,81,95,90,68,64,72,75,75,77,72,66,38,49,56,40,44,186,144,175,168,154,98,97,92,217,205,224,215,405,391,357,377,895,879,861,861,1763,1754,29988,29989,29992,29993]} 1. e4 {[%emt 0:00:09]} e5 {[%emt 0:00:06]} 2. Nf3 {[%emt 0:00:09]} Nc6 {[%emt 0:00:06]} 3. Nc3 {[%emt 0:00:05]} Nf6 {[%emt 0:01:14]} 4. d4 {[%emt 0:00:07]} exd4 {[%emt 0:05:29]} 5. Nxd4 {[%emt 0:00:06]} Bb4 {[%emt 0:00:17]} 6. Nxc6 {[%emt 0:00:08]} bxc6 {[%emt 0:00:02]} 7. Bd3 {[%emt 0:00:07]} d5 {[%emt 0:00:23]} 8. exd5 {[%emt 0:00:06]} O-O {[%emt 0:00:29]} 9. O-O {[%emt 0:00:05]} cxd5 {[%emt 0:00:05]} 10. h3 {[%emt 0:00:04] C47: Scotch Four Knights and Four Knights with 4 g3.} c6 {[%emt 0:04:24]} 11. Bf4 {[%emt 0:00:08]} Bd6 {[%emt 0:03:43]} 12. Qd2 {[%emt 0:00:06] The position is equal.} Rb8 {[%emt 0:03:14]} 13. b3 {[%emt 0:00:26]} Qc7 {[%emt 0:03:12]} 14. Bxd6 {[%emt 0:09:47]} Qxd6 {[%emt 0:00:05]} 15. Rfe1 {[%emt 0:02:54]} Bd7 {[%emt 0:01:54] [#]} 16. Ne2 $146 {[%emt 0:15:18]} ({Predecessor:} 16. Re2 g6 17. Rae1 Kg7 18. Re7 Rfd8 19. R1e2 Ng8 20. R7e3 Nf6 21. Re7 Ng8 22. R7e3 {½-½ Herzog,M (1872)-Gazen,L (2013) RB-2019-0-00369 2018}) 16... Rfe8 {[%emt 0:09:00]} 17. c4 {[%emt 0:05:12]} Re5 {[%emt 0:00:57]} 18. Red1 {[%emt 0:17:08]} Rbe8 {[%emt 0:06:06]} 19. cxd5 {[%emt 0:01:28]} Rxd5 {[%emt 0:09:24] ...Bf5 would be deadly.} 20. Qc2 $1 {[%emt 0:02:44]} (20. Nc3 $2 Rxd3 21. Qxd3 Re1+ 22. Rxe1 Qxd3 $19) 20... g6 {[%emt 0:21:17]} (20... Bxh3 $5 21. gxh3 Rd8 $11) 21. Bc4 {[%emt 0:07:58]} Qc5 {[%emt 0:09:26]} 22. Nf4 {[%emt 0:08:09]} Rf5 {[%emt 0:02:56] [#]} 23. Rac1 $1 {[%emt 0:08:11]} Qb6 {[%emt 0:03:22]} 24. g3 {[%emt 0:05:24]} (24. Nd3 {is more complex.} Rg5 25. Qb2 Ne4 26. Kh2) 24... Rg5 {[%emt 0:02:07]} 25. Qc3 {[%emt 0:05:17]} Rge5 {[%emt 0:08:26]} ({Black should play} 25... c5 $14) 26. Qf3 {[%emt 0:03:23]} ({White should try} 26. Rd6 $1 $16 {[%cal Rd6f6]} Ne4 27. Bxf7+ Kf8 28. Qb2 (28. Qd4 Nxd6 29. Qxd6+ Kxf7 $15)) 26... Bf5 {[%emt 0:00:59]} 27. Nd3 {[%emt 0:03:12]} (27. Bf1 $5 {[%cal Rf3c6]}) 27... Re4 {[%emt 0:00:25] [#]} 28. Nc5 $1 {[%emt 0:03:59]} R4e5 {[%emt 0:02:01]} 29. Nd3 {[%emt 0:00:28]} Re3 {[%emt 0:02:45]} 30. Qg2 $36 {[%emt 0:02:21][%mdl 2048] White is more active.} (30. fxe3 $2 Rxe3 31. Qg2 Rxg3+ 32. Nf2 Rxg2+ 33. Kxg2 Ne4 34. Nxe4 Bxe4+ 35. Kf1 Qe3 $19) 30... Be4 {[%emt 0:00:52]} 31. Qh2 {[%emt 0:00:09]} Rf3 {[%emt 0:00:28][%cal Be3f3,Bf3f5,Bf5e5,Be5e4][%mdl 32]} 32. Ne1 {[%emt 0:00:44]} Rf5 {[%emt 0:00:27]} 33. g4 {[%emt 0:00:28] Dodges Rh5} Rfe5 {[%emt 0:00:26]} 34. Qf4 {[%emt 0:00:46]} Nd5 {[%emt 0:00:41]} 35. Qd2 {[%emt 0:00:24]} Qd8 $2 {[%emt 0:00:40]} (35... h5 $11) 36. f3 $1 $16 {[%emt 0:00:30]} Qh4 {[%emt 0:00:27]} 37. fxe4 {[%emt 0:00:37]} Rxe4 {[%emt 0:00:27]} 38. Ng2 {[%emt 0:00:28]} (38. Bf1 $142 $1) 38... Qxh3 {[%emt 0:00:19]} 39. Bxd5 {[%emt 0:00:28]} cxd5 {[%emt 0:00:25]} 40. Qxd5 {[%emt 0:00:41]} Rxg4 {[%emt 0:00:51] ( -> ...Re2)} (40... Re2 $2 41. Rc7 Rf8 42. Rxa7 $18) 41. Re1 {[%emt 0:03:32] Prevents Re2.} Re3 {[%emt 0:10:29]} 42. Rc8+ $1 {[%emt 0:11:00]} ({Wrong is} 42. Rf1 $2 Rxg2+ 43. Qxg2 Rg3 $19) 42... Kg7 {[%emt 0:00:04] [#]} 43. Rxe3 {[%emt 0:00:16]} Qxe3+ {[%emt 0:00:29]} 44. Kf1 {[%emt 0:00:22]} Qe7 {[%emt 0:04:42]} 45. Rc2 {[%emt 0:05:54]} h5 {[%emt 0:04:19]} 46. Re2 {[%emt 0:01:56]} Qf6+ {[%emt 0:01:36]} 47. Rf2 {[%emt 0:01:01]} Qa1+ {[%emt 0:02:59]} ({Better is} 47... Qa6+ $14 48. Kg1 Qe6 49. Qxe6 fxe6) 48. Ne1 $18 {[%emt 0:00:20]} f5 {[%emt 0:01:55]} 49. Qd7+ {[%emt 0:02:18]} Kh6 {[%emt 0:01:18]} 50. Qd2+ {[%emt 0:00:32]} (50. Qxa7 $142 {Qe3+ is the strong threat.} Qe5 51. Qd7) 50... Kh7 $16 {[%emt 0:00:10]} 51. Re2 {[%emt 0:01:56] Inhibits Qe5. Black must now prevent Re7+.} Qf6 {[%emt 0:00:37] Repels Re7+} (51... Re4 $16 {is a better defense.}) 52. Nf3 $18 {[%emt 0:01:21]} Rg3 {[%emt 0:02:18]} 53. Kf2 {[%emt 0:00:59]} f4 $2 {[%emt 0:00:01]} (53... h4 54. Qe3 Rg4) 54. Re4 {[%emt 0:01:09]} Qb6+ {[%emt 0:03:52] [#]} 55. Rd4 $1 {[%emt 0:01:37]} g5 {[%emt 0:01:04]} (55... Rg4 56. Qe2 Qf6) 56. Qd3+ {[%emt 0:01:54]} Kg7 {[%emt 0:01:37]} 57. Ke2 {[%emt 0:00:30] And now Rd7+ would win.} ({Stronger than} 57. Qf5 Rxf3+ 58. Kxf3 Qxd4 59. Qxg5+ Kf8 60. Qxf4+ Qxf4+ 61. Kxf4 Ke7 $11) 57... Qe6+ {[%emt 0:00:43]} 58. Re4 {[%emt 0:00:17]} Qc6 {[%emt 0:00:46]} 59. Qd4+ {[%emt 0:01:11]} Kg8 {[%emt 0:00:29]} 60. Qd8+ {[%emt 0:00:20] An entertaining game by Caspi.   Weighted Error Value: White=0.11 (very precise) /Black=0.38} 1-0

[Event "Israeli Team-ch 2023"]
[Site "Petah Tikva"]
[Date "2023.01.13"]
[Round "2.11"]
[White "Taichman, Ori"]
[Black "Kogan, Arthur"]
[Result "0-1"]
[ECO "B30"]
[WhiteElo "2317"]
[BlackElo "2471"]
[Annotator "TA"]
[PlyCount "120"]
[EventDate "2023.01.13"]
[EventCountry "ISR"]
[SourceTitle "playchess.com"]
[Source "ChessBase"]
[SourceQuality "1"]
[TimeControl "40/5400+30:1800+30"]

{[%evp 10,120,8,4,0,0,0,7,4,0,0,0,10,6,27,20,27,0,46,25,33,25,41,27,48,28,31,0,0,0,37,38,46,0,8,0,12,-47,0,-16,-11,-76,-58,-56,-28,-25,-31,-31,-27,-47,-43,-40,-43,-40,-36,-66,-64,-52,-43,-40,-36,-90,-88,-120,-56,-100,-79,-80,-68,-86,-16,-123,-154,-125,-117,-138,-115,-97,-97,-203,-202,-250,-20,-19,-22,-19,-15,-15,-16,-18,-14,-396,-373,-359,-346,-677,-550,-506,-76,-389,-396,-29991,-4956,-4574,-4814,-1838,-1175,-1179,-1034,-4133,-3408,-2317,-2429]} 1. e4 {[%emt 0:00:13]} c5 {[%emt 0:01:20]} 2. Nc3 {[%emt 0:00:07]} Nc6 {[%emt 0:00:37]} 3. Bb5 {[%emt 0:00:07]} Nd4 {[%emt 0:00:20]} 4. Nf3 {[%emt 0:00:07]} e6 {[%emt 0:00:43]} 5. O-O {[%emt 0:00:08]} a6 {[%emt 0:00:14]} 6. Bd3 {[%emt 0:00:06]} Nc6 {[%emt 0:01:34] B30: Sicilian: 2...Nc6 3 Bb5, lines without ...g6.} 7. Nd5 {[%emt 0:00:19]} g6 {[%emt 0:11:52]} 8. c3 {[%emt 0:00:34]} Bg7 {[%emt 0:00:16] [#] The position is equal.} 9. Re1 $1 {[%emt 0:00:18]} d6 {[%emt 0:01:26]} 10. Ne3 {[%emt 0:00:15]} Nge7 {[%emt 0:04:01]} 11. Bc2 {[%emt 0:00:27]} e5 {[%emt 0:02:03]} (11... d5 $5 {[%cal Rd5d4]}) 12. a3 {[%emt 0:00:15]} O-O {[%emt 0:03:30]} 13. b4 {[%emt 0:00:09] [#]} Kh8 $146 {[%emt 0:08:17]} (13... Nd4 $11 {is more appropriate.}) ({Predecessor:} 13... b5 14. Rb1 h6 15. Bb2 f5 16. bxc5 dxc5 17. a4 Qd6 18. Ba3 Be6 19. d3 f4 {½-½ Zvjaginsev,V (2648)-Bukavshin,I (2647) RUS-ch Higher League 68th 2015 (9)}) 14. Rb1 {[%emt 0:10:35]} cxb4 {[%emt 0:09:29]} 15. axb4 {[%emt 0:00:37]} f5 {[%emt 0:00:09]} 16. b5 {[%emt 0:25:16]} axb5 {[%emt 0:03:06]} 17. Rxb5 {[%emt 0:00:10]} Na7 {[%emt 0:05:14]} 18. Rb4 {[%emt 0:08:47]} Nac6 {[%emt 0:06:33]} 19. Rb5 {[%emt 0:00:27]} Ra1 {[%emt 0:02:57]} 20. exf5 {[%emt 0:13:29]} gxf5 {[%emt 0:02:32]} 21. Ng5 {[%emt 0:07:41]} (21. d4 $1 $14) 21... Qe8 {[%emt 0:03:53]} 22. Nc4 {[%emt 0:09:41]} Qg6 {[%emt 0:04:05] [#]} 23. f4 {[%emt 0:04:31]} h6 {[%emt 0:10:13]} (23... d5 $15 24. Nb6 e4 25. Nxc8 {[%mdl 64] Remove Defender} (25. Nxd5 Nxd5 26. Rxd5 h6 $17) 25... Rxc8) 24. Nh3 {[%emt 0:05:43]} (24. Nf3 $5 {[%cal Rf4e5]}) 24... e4 {[%emt 0:04:39]} 25. d4 {[%emt 0:00:17]} (25. Bb1 $11) 25... d5 {[%emt 0:05:56]} (25... Ra2 26. Bb2 $11) 26. Ne3 {[%emt 0:05:30]} (26. Ne5 Bxe5 27. dxe5 Rg8 $17) 26... Na7 {[%emt 0:02:45]} 27. Rb1 {[%emt 0:02:03]} Rxb1 28. Bxb1 {[%emt 0:00:01]} Nb5 {[%emt 0:01:38] Dodges Ba3} 29. Qb3 {[%emt 0:00:36][%csl LRb5,LRd5]} Qc6 {[%emt 0:01:37]} 30. Ba3 {[%emt 0:00:49]} Nxa3 {[%emt 0:00:18]} (30... Qxc3 31. Qxc3 (31. Qxb5 $2 Qxe1+ 32. Qf1 Qxe3+ $19) 31... Nxc3 32. Bxe7 $16) 31. Qxa3 {[%emt 0:00:03]} Ng6 {[%emt 0:00:19]} 32. Ba2 {[%emt 0:01:53]} Be6 {[%emt 0:00:07]} 33. Rb1 {[%emt 0:01:39]} Rc8 {[%emt 0:01:04]} 34. Rb3 {[%emt 0:00:37]} b5 {[%emt 0:02:25][%cal Ob5b4] Strongly threatening ...b4!} 35. Qb2 {[%emt 0:01:31]} (35. g3 $15) 35... Ne7 $17 {[%emt 0:01:48][%cal Ob5b4]} 36. Nd1 {[%emt 0:02:18]} Bd7 {[%emt 0:00:49]} (36... Rb8 $17 {Threatens to win with ...Qa6.} 37. Ne3 Nc8) 37. Nhf2 {[%emt 0:00:49]} Qd6 {[%emt 0:00:33]} 38. g3 {[%emt 0:00:09]} Ra8 {[%emt 0:01:08][%cal Bc8a8,Ba8a4,Ba4a3,Ba3c3,Bc3c5][%mdl 32]} 39. Ne3 {[%emt 0:00:21]} Nc8 {[%emt 0:00:00]} (39... Bf6 $17) 40. Nc2 {[%emt 0:01:03]} (40. Qd2 $11) 40... Nb6 $1 {[%emt 0:00:08]} 41. Nb4 {[%emt 0:10:07]} Nc4 {[%emt 0:10:32]} 42. Qe2 {[%emt 0:00:03]} Ra4 $1 {[%emt 0:01:26][%cal Og7d4] White must now prevent ...Bxd4! Black is much more active.} 43. Qh5 {[%emt 0:03:00]} Qe6 {[%emt 0:02:18]} 44. Rb1 {[%emt 0:04:39]} (44. Nd1 $17) 44... Ra3 $19 {[%emt 0:05:22]} 45. Rc1 {[%emt 0:05:52] [#]} e3 $2 {[%emt 0:08:12]} ({Black should play} 45... Bf8 $1 $19 {[%cal Rf8b4] And now ...Bxb4 would win.} 46. Bxc4 bxc4) 46. Nfd3 $11 {[%emt 0:00:57]} e2 $36 {[%emt 0:00:27][%mdl 2048] Black has good play.} 47. Ne5 {[%emt 0:09:05]} Nxe5 {[%emt 0:00:28]} (47... Rxc3 $6 48. Re1 $17) 48. fxe5 {[%emt 0:00:20] [#]} Rxc3 $1 {[%emt 0:00:10][%mdl 64] Decoy, Promotion} 49. Re1 {[%emt 0:00:03]} Qb6 {[%emt 0:01:00][%csl LRd4,LRe5]} 50. Bxd5 $2 {[%emt 0:00:18][%mdl 8192]} (50. Kg2 $11 Qxd4 51. Rxe2 Qxb4 52. e6 Bxe6 53. Rxe6 Rc2+ 54. Kf1 Rc1+ 55. Kg2 Qd2+ 56. Kh3) 50... Qxd4+ $19 {[%emt 0:00:47]} 51. Kg2 {[%emt 0:00:01][%cal Oh5f7] [#] Hoping for Qf7!} Rc5 $1 {[%emt 0:03:32]} ({Stronger than} 51... Qxb4 52. Qf7 Qf8 53. Qxd7 $11) 52. e6 $2 {[%emt 0:01:48]} (52. Qf7 Rxd5 53. Qxd5 Qxd5+ {[%mdl 64] Remove Defender} 54. Nxd5) 52... Rxd5 {[%emt 0:01:18]} 53. exd7 {[%emt 0:00:02] Qe8+ would be deadly.} Qe4+ {[%emt 0:01:05]} ({Inferior is} 53... Rxd7 54. Rxe2 Qg4 55. Qe8+ Kh7 56. h3 $17) (53... Qxb4 $19 {has better winning chances.} 54. Rxe2 Kh7) 54. Kh3 $2 {[%emt 0:00:38][%mdl 8192] White is weak on the dark squares} (54. Qf3 $17 Rxd7 55. Rxe2 Qxf3+ 56. Kxf3) 54... Qxb4 {[%emt 0:00:37]} ({Weaker is} 54... Rxd7 55. Rxe2 Qg4+ 56. Qxg4 fxg4+ 57. Kh4 $15) 55. Qf7 $2 {[%emt 0:00:47]} (55. Rxe2 $19 Qg4+ 56. Qxg4 fxg4+ 57. Kxg4 Rxd7 58. Re8+ Kh7 59. Rb8) 55... Qg4+ {[%emt 0:00:34]} (55... Qxe1 $142 56. Qxd5 Qf1+ 57. Kh4 Bf6+ 58. Kh5 Kg7 59. h4 e1=Q 60. Qf7+ Kxf7 61. d8=Q Bxd8 62. Kxh6 Qxg3 63. Kh7 Qxh4#) 56. Kg2 {[%emt 0:00:01] Black is clearly winning.} Qe4+ {[%emt 0:00:25]} 57. Kh3 {[%emt 0:00:06]} Qd4 {[%emt 0:00:35]} 58. Qe8+ {[%emt 0:01:23]} Kh7 {[%emt 0:00:04]} 59. Qe6 {[%emt 0:00:23]} Qg4+ {[%emt 0:00:27]} 60. Kg2 {[%emt 0:00:02]} Qe4+ {[%emt 0:00:14] Excellently played by Kogan!   Weighted Error Value: White=0.60/Black=0.47} 0-1

[Event "Israeli Team-ch 2023"]
[Site "Petah Tikva"]
[Date "2023.01.13"]
[Round "2.12"]
[White "Golod, Vitali"]
[Black "Klenburg, Michael"]
[Result "1-0"]
[ECO "E92"]
[WhiteElo "2501"]
[BlackElo "2347"]
[Annotator "TA"]
[PlyCount "117"]
[EventDate "2023.01.13"]
[EventCountry "ISR"]
[SourceTitle "playchess.com"]
[Source "ChessBase"]
[SourceQuality "1"]
[TimeControl "40/5400+30:1800+30"]

{[%evp 18,117,30,22,36,34,38,20,20,30,33,25,29,16,19,35,24,20,29,14,25,14,17,0,1,17,6,6,28,0,79,91,86,84,107,75,80,63,59,70,63,45,116,110,109,116,112,116,121,113,116,99,122,108,154,112,220,214,235,197,247,239,239,243,431,407,432,389,427,351,347,327,638,640,638,636,591,575,568,539,631,631,583,526,1941,1892,2584,6374,5773,4233,2838,926,5241,921,743,743,5223,3714,2638,1808,29995,29996]} 1. d4 {[%emt 0:00:11]} Nf6 {[%emt 0:00:36]} 2. c4 {[%emt 0:00:23]} g6 {[%emt 0:00:17]} 3. Nc3 {[%emt 0:00:55]} Bg7 {[%emt 0:00:25]} 4. e4 {[%emt 0:00:12]} d6 {[%emt 0:00:05]} 5. Nf3 {[%emt 0:00:53]} O-O {[%emt 0:00:29]} 6. Be2 {[%emt 0:00:05]} e5 {[%emt 0:00:29]} 7. d5 {[%emt 0:03:54]} a5 {[%emt 0:01:49]} 8. O-O {[%emt 0:00:16]} Na6 {[%emt 0:01:14]} 9. Bg5 {[%emt 0:00:12]} Qe8 {[%emt 0:00:59]} 10. Nd2 {[%emt 0:01:58]} Kh8 {[%emt 0:02:30] E92: King's Indian: Classical: 6 Be2 e5: 7 dxe5, 7 Be3 and Petrosian System without 7...Nbd7.} 11. a3 {[%emt 0:04:15][%cal Ob2b4]} Bd7 {[%emt 0:01:32]} 12. b3 {[%emt 0:01:01]} Ng8 {[%emt 0:00:56] The position is equal.} 13. Rb1 {[%emt 0:02:46]} f5 {[%emt 0:11:40] Strongly threatening ...h6.} 14. f3 {[%emt 0:01:19]} Bh6 {[%emt 0:01:59]} 15. Bxh6 {[%emt 0:03:33]} Nxh6 {[%emt 0:00:59]} 16. b4 {[%emt 0:00:06]} axb4 {[%emt 0:00:34]} 17. axb4 {[%emt 0:00:22][%cal Oc4c5]} Qe7 {[%emt 0:01:43]} 18. Kh1 {[%emt 0:02:38]} Nf7 {[%emt 0:04:18]} 19. Qc2 {[%emt 0:03:09] [#]} f4 $146 {[%emt 0:08:13]} ({Predecessor:} 19... Rfb8 20. exf5 gxf5 21. f4 Rg8 {½-½ Kraai,J (2345)-Nielsen,P (2505) Roskilde op 1998 (7)}) 20. Rfc1 {[%emt 0:04:53][%cal Oc4c5]} c5 {[%emt 0:10:44]} 21. dxc6 {[%emt 0:06:12]} bxc6 {[%emt 0:00:05]} 22. b5 {[%emt 0:03:31]} Nc5 {[%emt 0:00:12]} 23. Nb3 {[%emt 0:00:09]} Nd8 {[%emt 0:05:10]} (23... Ne6 $11 {remains equal.}) 24. Nxc5 $16 {[%emt 0:06:29]} dxc5 {[%emt 0:00:19]} 25. Ra1 {[%emt 0:01:28]} Ne6 {[%emt 0:04:59]} 26. Rxa8 {[%emt 0:01:07]} Rxa8 {[%emt 0:00:04]} 27. b6 {[%emt 0:00:08]} Bc8 {[%emt 0:03:50]} 28. Qb2 {[%emt 0:02:11]} Kg8 {[%emt 0:02:10]} 29. Bf1 {[%emt 0:05:33]} (29. Ra1 $5 {[%cal Ra1a8]} Rb8 30. Bf1 $16) 29... Bb7 {[%emt 0:03:59] Black is on the road to losing.} (29... Nf8 $14) 30. Ra1 {[%emt 0:03:49]} Rxa1 {[%emt 0:00:57]} 31. Qxa1 {[%emt 0:00:08]} Qd6 {[%emt 0:00:32]} 32. Ne2 {[%emt 0:00:46]} Kf8 {[%emt 0:02:29]} 33. Qa7 {[%emt 0:05:37]} Nd8 {[%emt 0:00:49]} 34. g3 {[%emt 0:04:34] White is more active.} g5 {[%emt 0:02:05]} 35. gxf4 {[%emt 0:01:37]} exf4 {[%emt 0:03:42]} 36. Ng1 {[%emt 0:02:42]} h6 {[%emt 0:04:40] [#]} (36... Qe5 $16 37. Bh3 h5) 37. Bh3 $1 $18 {[%emt 0:00:56]} Qe5 {[%emt 0:00:20]} 38. Bf5 {[%emt 0:02:21]} Ke8 {[%emt 0:01:09]} (38... h5 {was necessary.} 39. Qa2 Ke7) 39. Qa2 {[%emt 0:04:48]} Ke7 {[%emt 0:04:17] [#]} 40. h4 $1 {[%emt 0:04:28][%mdl 512]} Qc3 $2 {[%emt 0:02:44]} (40... Qb8 41. Nh3 Nf7) (40... Kf8 41. Nh3) 41. Qa7 {[%emt 0:33:42] Black must now prevent Bc8.} Ke8 {[%emt 0:39:16]} 42. Qb8 {[%emt 0:01:29] Threatens to win with Bg6+.} Qf6 {[%emt 0:00:40] Inhibits Bg6+.} 43. Qc7 {[%emt 0:04:43]} Qe7 {[%emt 0:01:32]} 44. Nh3 {[%emt 0:10:10]} Kf8 $2 {[%emt 0:03:36]} (44... Qxc7 45. bxc7 Nf7 46. c8=Q+ Bxc8) 45. hxg5 {[%emt 0:00:00]} hxg5 {[%emt 0:00:00]} 46. Bc8 {[%emt 0:00:00]} Bxc8 {[%emt 0:00:00]} 47. Qxc8 {[%emt 0:00:00][%cal Ob6b7][%mdl 4096] Endgame KQN-KQN} Ke8 {[%emt 0:00:00]} 48. Kg2 {[%emt 0:00:00]} Qg7 {[%emt 0:00:00]} 49. Qc7 {[%emt 0:00:00]} Qb2+ {[%emt 0:00:00]} 50. Nf2 {[%emt 0:00:00]} g4 {[%emt 0:00:00]} 51. fxg4 {[%emt 0:00:00][%cal Bf3g4,Bg4g5][%mdl 32]} (51. Qxf4 gxf3+ 52. Qxf3 (52. Kxf3 Qxb6 53. Qe5+ Kd7 $14) 52... Qxb6 $14) 51... Qb3 {[%emt 0:00:00]} 52. Qe5+ {[%emt 0:00:00]} Kd7 {[%emt 0:00:00]} 53. Qxf4 {[%emt 0:00:00]} Qxb6 {[%emt 0:00:00]} 54. g5 {[%emt 0:00:00] And now g6 would win.} Qb2 {[%emt 0:00:00]} 55. e5 {[%emt 0:00:00]} (55. Qf5+ $142 Ke8 56. g6) 55... Qc2 {[%emt 0:00:00]} 56. Qe4 {[%emt 0:00:00]} Qc1 {[%emt 0:00:00]} 57. Qf5+ {[%emt 0:00:00]} Ke8 {[%emt 0:00:00]} 58. Ne4 {[%emt 0:00:00]} Nf7 {[%emt 0:00:00]} 59. Nf6+ {[%emt 0:00:00] Weighted Error Value: White=0.10 (very precise) /Black=0.47} ({Weaker is} 59. Nxc5 Qd2+ 60. Kh3 (60. Kf1 Qd1+ 61. Kf2 Qd4+ 62. Kg2 Qd2+ 63. Kh1 Qe1+ 64. Kh2 Qd2+ 65. Kh3 Qe3+ 66. Kg2 Qd2+ $11) 60... Qe3+ 61. Kg2 Qd2+ 62. Kh3 (62. Kf1 Qd1+ 63. Kf2 Qd2+ 64. Kg3 Qe3+ 65. Kg2 Qd2+ $11) 62... Qe3+ 63. Kg2 Qd2+ $11) 1-0

[Event "Israeli Team-ch 2023"]
[Site "Petah Tikva"]
[Date "2023.01.13"]
[Round "2.13"]
[White "Kantsler, Boris"]
[Black "Shohat, Yotam"]
[Result "1/2-1/2"]
[ECO "E90"]
[WhiteElo "2407"]
[BlackElo "2284"]
[Annotator "TA"]
[PlyCount "69"]
[EventDate "2023.01.13"]
[EventCountry "ISR"]
[SourceTitle "playchess.com"]
[Source "ChessBase"]
[SourceQuality "1"]
[TimeControl "40/5400+30:1800+30"]

{[%evp 18,69,36,44,93,97,84,79,81,75,81,58,70,52,57,54,71,45,50,14,39,17,28,0,26,-50,-23,-34,-27,-22,-31,-35,0,0,0,0,0,0,0,-32,-30,-41,-17,-16,-20,-118,-116,-144,-135,-127,0,-127,0,-113]} 1. d4 {[%emt 0:00:02]} Nf6 {[%emt 0:07:54]} 2. c4 {[%emt 0:00:07]} c5 {[%emt 1:23:36]} 3. d5 {[%emt 1:31:51]} g6 {[%emt 0:00:00]} 4. Nc3 {[%emt 0:00:00]} Bg7 {[%emt 0:00:00]} 5. e4 {[%emt 0:00:00]} O-O {[%emt 0:00:00]} 6. Nf3 {[%emt 0:00:00]} d6 {[%emt 0:00:00]} 7. h3 {[%emt 0:00:00]} e6 {[%emt 0:00:00]} 8. Bd3 {[%emt 0:00:00]} exd5 {[%emt 0:03:00]} 9. exd5 {[%emt 0:00:00]} Re8+ {[%emt 0:00:30]} 10. Be3 Rxe3+ {[%emt 0:00:00] E90: King's Indian: Classical: Early deviations and 6 h3.} 11. fxe3 $16 {[%emt 0:00:00]} Qe7 {[%emt 0:00:00]} 12. O-O {[%emt 0:00:00]} Nbd7 {[%emt 0:00:00][%cal Bb8d7,Bd7f6,Bf6e4,Be4c3][%mdl 32] White is better.} 13. Qd2 {[%emt 0:00:00]} Nh5 {[%emt 0:00:00]} 14. Ne2 {[%emt 0:00:00] [#]} f5 $146 {[%emt 0:00:00]} ({Predecessor:} 14... Ne5 15. Nxe5 Bxe5 16. Nf4 Nf6 17. Rf3 Bd7 18. Raf1 Rf8 19. b3 Kg7 20. a4 Ng8 {½-½ Korobov,A (2688)-Ponomariov,R (2631) Gladiators May 14th blitz 2020 (4)}) 15. Nf4 {[%emt 0:00:00] [#] aiming for Nxh5.} Ng3 {[%emt 0:00:00]} 16. Rfe1 {[%emt 0:00:00]} Nf6 {[%emt 0:00:00]} 17. Qc2 {[%emt 0:00:00]} Bd7 {[%emt 0:00:00]} 18. Rad1 {[%emt 0:00:00]} (18. Kh2 $5 {[%cal Rh2g3]} Nfe4 19. Rab1 $14) 18... Re8 {[%emt 0:00:00]} 19. Qf2 {[%emt 0:00:00]} Nfe4 {[%emt 0:00:00]} 20. Qc2 {[%emt 0:00:00]} (20. Bxe4 {simplifies} Nxe4 21. Qc2 Qf6 22. Rb1) 20... Qf6 {[%emt 0:00:00]} 21. b3 {[%emt 0:09:00]} (21. Bxe4 $11 fxe4 22. Nd2) 21... Nc3 {[%emt 0:06:00]} (21... g5 $5 {[%cal Rg5f4]} 22. Ne6 Bxe6 23. dxe6 Rxe6 $15) 22. Rc1 {[%emt 0:00:00]} g5 23. Ne6 {[%emt 0:01:00]} Bxe6 {[%emt 0:00:00]} 24. dxe6 {[%emt 0:00:00]} h5 {[%emt 0:01:30][%cal Bh7h5,Bh5h4][%mdl 32]} (24... g4 {seems wilder.} 25. Kh2 f4 26. Bxh7+ Kh8) 25. Nh2 Rxe6 26. Nf1 Nxf1 {[%emt 0:00:00]} 27. Bxf1 {[%emt 0:00:00]} ({Reject} 27. Rxf1 Rxe3 28. Rce1 (28. Bxf5 $2 {is the wrong capture.} Ne2+ 29. Kh1 Ng3+ 30. Kg1 Qd4 $19) (28. Rxf5 $2 {too greedy.} Qd4 $19) 28... Qd4 29. Rxe3 Qxe3+ 30. Kh1 g4 $15) 27... Ne4 {[%emt 0:00:00] [#] ...g4 is the strong threat.} 28. Bd3 {[%emt 0:00:00] White is weak on the dark squares} (28. g4 $5) 28... Ng3 {[%emt 0:00:00][%mdl 1024] Prevents Rf1. White must now prevent ...g4. Black has compensation.} 29. Qf2 $1 {[%emt 0:00:00]} h4 {[%emt 0:00:00]} 30. Qf3 {[%emt 0:03:30]} Qf7 {[%emt 0:00:00]} 31. a4 {[%emt 0:00:00]} (31. Bc2 $11 {remains equal.}) 31... a5 $17 {[%emt 0:01:03]} 32. Kh2 {[%emt 0:00:00]} Be5 {[%emt 0:02:57]} 33. Kg1 Bg7 34. Kh2 Be5 {[%emt 0:00:00]} 35. Kg1 {[%emt 0:00:00] Weighted Error Value: White=0.18 (very precise) /Black=0.19 (very precise)} 1/2-1/2